[Event "Titled Tuesday Blitz August 17 2021"]
[White "Zakhartsov, Vladimir"]
[Black "Ayushh, Ravikumar"]
[WhiteFideId "4145097"]
[BlackFideId "35039482"]
[WhiteElo "2488"]
[BlackElo "1441"]
[Result "1-0"]
[Round "01"]
[TimeControl "180+1"]
[Date "2021.08.18"]
[WhiteClock "0:00:16"]
[BlackClock "0:00:04"]

1. d4 {[%clk 0:02:59]}  Nf6 {[%clk 0:01:51]} 2. c4 {[%clk 0:02:58]}  e6 {[%clk 0:01:50]} 3. Nc3 {[%clk 0:02:58]}  d5 {[%clk 0:01:49]} 4. Nf3 {[%clk 0:02:56]}  Bb4 {[%clk 0:01:44]} 5. Qa4+ {[%clk 0:02:54]}  Nc6 {[%clk 0:01:43]} 6. e3 {[%clk 0:02:54]}  O-O {[%clk 0:01:42]} 7. Bd2 {[%clk 0:02:53]}  dxc4 {[%clk 0:01:37]} 8. Bxc4 {[%clk 0:02:53]}  Bd6 {[%clk 0:01:37]} 9. Rd1 {[%clk 0:02:45]}  Qe7 {[%clk 0:01:32]} 10. O-O {[%clk 0:02:29]}  Bd7 {[%clk 0:01:15]} 11. Qc2 {[%clk 0:02:26]}  a6 {[%clk 0:01:01]} 12. a3 {[%clk 0:02:22]}  Rab8 {[%clk 0:00:47]} 13. h3 {[%clk 0:02:17]}  b5 {[%clk 0:00:44]} 14. Bd3 {[%clk 0:02:16]}  b4 {[%clk 0:00:44]} 15. Ne4 {[%clk 0:02:17]}  bxa3 {[%clk 0:00:27]} 16. bxa3 {[%clk 0:02:16]}  h6 {[%clk 0:00:26]} 17. Nxf6+ {[%clk 0:02:13]}  Qxf6 {[%clk 0:00:27]} 18. Be4 {[%clk 0:01:57]}  Rb6 {[%clk 0:00:19]} 19. Rb1 {[%clk 0:01:52]}  Rfb8 {[%clk 0:00:19]} 20. Rxb6 {[%clk 0:01:51]}  Rxb6 {[%clk 0:00:20]} 21. a4 {[%clk 0:01:50]}  Nb4 {[%clk 0:00:17]} 22. Qd1 {[%clk 0:01:45]}  Qd8 {[%clk 0:00:17]} 23. Bb1 {[%clk 0:01:38]}  Qe8 {[%clk 0:00:16]} 24. Bxb4 {[%clk 0:01:26]}  Rxb4 {[%clk 0:00:17]} 25. Qd3 {[%clk 0:01:25]}  Bxa4 {[%clk 0:00:15]} 26. Qh7+ {[%clk 0:01:23]}  Kf8 {[%clk 0:00:15]} 27. Qh8+ {[%clk 0:01:21]}  Ke7 {[%clk 0:00:16]} 28. Qxg7 {[%clk 0:01:21]}  Bb5 {[%clk 0:00:14]} 29. Re1 {[%clk 0:01:19]}  Qf8 {[%clk 0:00:14]} 30. Qg4 {[%clk 0:01:16]}  Bc6 {[%clk 0:00:10]} 31. e4 {[%clk 0:01:15]}  Kd7 {[%clk 0:00:09]} 32. e5 {[%clk 0:01:09]}  Be7 {[%clk 0:00:07]} 33. Be4 {[%clk 0:01:08]}  Bxe4 {[%clk 0:00:07]} 34. Qxe4 {[%clk 0:01:09]}  Qb8 {[%clk 0:00:07]} 35. Qh7 {[%clk 0:01:07]}  Qb7 {[%clk 0:00:07]} 36. Qxf7 {[%clk 0:01:03]}  Rb1 {[%clk 0:00:08]} 37. Rxb1 {[%clk 0:00:55]}  Qxb1+ {[%clk 0:00:08]} 38. Kh2 {[%clk 0:00:56]}  a5 {[%clk 0:00:09]} 39. d5 {[%clk 0:00:55]}  exd5 {[%clk 0:00:06]} 40. Qxd5+ {[%clk 0:00:56]}  Ke8 {[%clk 0:00:06]} 41. Qxa5 {[%clk 0:00:53]}  Qb6 {[%clk 0:00:07]} 42. Qd5 {[%clk 0:00:44]}  Qg6 {[%clk 0:00:04]} 43. Nd4 {[%clk 0:00:33]}  Qf7 {[%clk 0:00:04]} 44. Qa8+ {[%clk 0:00:17]}  Kd7 {[%clk 0:00:04]} 45. e6+ {[%clk 0:00:16]} 1-0


[Site "https://www.chess.com"]

[Event "Titled Tuesday Blitz August 17 2021"]
[White "Zarubitski, Viachaslau"]
[Black "Alhadad, Mahmoud"]
[WhiteFideId "13509373"]
[BlackFideId "11501863"]
[WhiteElo "2315"]
[BlackElo "1955"]
[Result "1-0"]
[Round "01"]
[TimeControl "180+1"]
[Date "2021.08.18"]
[WhiteClock "0:00:21"]
[BlackClock "0:00:08"]

1. e4 {[%clk 0:03:00]}  d5 {[%clk 0:02:59]} 2. exd5 {[%clk 0:02:56]}  Nf6 {[%clk 0:02:58]} 3. Nf3 {[%clk 0:02:55]}  Bg4 {[%clk 0:02:58]} 4. h3 {[%clk 0:02:52]}  Bxf3 {[%clk 0:02:57]} 5. Qxf3 {[%clk 0:02:53]}  Qxd5 {[%clk 0:02:57]} 6. Qxd5 {[%clk 0:02:53]}  Nxd5 {[%clk 0:02:58]} 7. d4 {[%clk 0:02:47]}  Nc6 {[%clk 0:02:57]} 8. c3 {[%clk 0:02:46]}  O-O-O {[%clk 0:02:55]} 9. Bb5 {[%clk 0:02:44]}  e6 {[%clk 0:02:52]} 10. O-O {[%clk 0:02:42]}  a6 {[%clk 0:02:52]} 11. Bxc6 {[%clk 0:02:37]}  bxc6 {[%clk 0:02:53]} 12. Nd2 {[%clk 0:02:37]}  c5 {[%clk 0:02:53]} 13. dxc5 {[%clk 0:02:31]}  Bxc5 {[%clk 0:02:52]} 14. Nb3 {[%clk 0:02:32]}  Bb6 {[%clk 0:02:49]} 15. a3 {[%clk 0:02:32]}  h6 {[%clk 0:02:45]} 16. c4 {[%clk 0:02:30]}  Nf6 {[%clk 0:02:41]} 17. c5 {[%clk 0:02:30]}  Rd3 {[%clk 0:02:17]} 18. cxb6 {[%clk 0:02:31]}  Rxb3 {[%clk 0:02:16]} 19. bxc7 {[%clk 0:02:31]}  Kxc7 {[%clk 0:02:16]} 20. Bf4+ {[%clk 0:02:25]}  Kb7 {[%clk 0:02:13]} 21. Be5 {[%clk 0:02:22]}  Rd8 {[%clk 0:01:37]} 22. Rfd1 {[%clk 0:02:18]}  Rbd3 {[%clk 0:01:15]} 23. Rxd3 {[%clk 0:02:14]}  Rxd3 {[%clk 0:01:16]} 24. Rc1 {[%clk 0:02:13]}  Ne8 {[%clk 0:01:14]} 25. Kf1 {[%clk 0:02:09]}  f6 {[%clk 0:01:14]} 26. Bc3 {[%clk 0:02:04]}  e5 {[%clk 0:01:01]} 27. Ke2 {[%clk 0:02:03]}  Rd5 {[%clk 0:01:00]} 28. Bb4 {[%clk 0:02:00]}  Nc7 {[%clk 0:00:56]} 29. Ke3 {[%clk 0:01:50]}  a5 {[%clk 0:00:48]} 30. Bc3 {[%clk 0:01:44]}  Ne6 {[%clk 0:00:47]} 31. Ke4 {[%clk 0:01:43]}  Rc5 {[%clk 0:00:40]} 32. Kf5 {[%clk 0:01:34]}  Nd4+ {[%clk 0:00:37]} 33. Kg6 {[%clk 0:01:33]}  Ne2 {[%clk 0:00:37]} 34. Rc2 {[%clk 0:01:29]}  Nd4 {[%clk 0:00:13]} 35. Rd2 {[%clk 0:01:23]}  Ne6 {[%clk 0:00:10]} 36. Rd6 {[%clk 0:01:12]}  Rc6 {[%clk 0:00:09]} 37. Rxc6 {[%clk 0:01:08]}  Kxc6 {[%clk 0:00:10]} 38. Bxa5 {[%clk 0:01:08]}  Kd5 {[%clk 0:00:10]} 39. Bd2 {[%clk 0:01:05]}  Ke4 {[%clk 0:00:09]} 40. a4 {[%clk 0:01:02]}  f5 {[%clk 0:00:09]} 41. a5 {[%clk 0:01:01]}  Kd3 {[%clk 0:00:09]} 42. Bc3 {[%clk 0:00:56]}  Nf4+ {[%clk 0:00:10]} 43. Kxf5 {[%clk 0:00:56]}  Nxg2 {[%clk 0:00:10]} 44. a6 {[%clk 0:00:56]}  Nf4 {[%clk 0:00:10]} 45. a7 {[%clk 0:00:56]}  Nxh3 {[%clk 0:00:10]} 46. a8=Q {[%clk 0:00:56]}  g6+ {[%clk 0:00:11]} 47. Kxe5 {[%clk 0:00:55]}  Nxf2 {[%clk 0:00:12]} 48. Qf3+ {[%clk 0:00:55]}  Kc2 {[%clk 0:00:11]} 49. Qxf2+ {[%clk 0:00:55]}  Kb3 {[%clk 0:00:08]} 50. Qg3 {[%clk 0:00:54]}  h5 {[%clk 0:00:07]} 51. Kf6 {[%clk 0:00:53]}  h4 {[%clk 0:00:07]} 52. Qxh4 {[%clk 0:00:53]}  g5 {[%clk 0:00:07]} 53. Qxg5 {[%clk 0:00:53]}  Ka2 {[%clk 0:00:07]} 54. Ke6 {[%clk 0:00:53]}  Kb1 {[%clk 0:00:07]} 55. b4 {[%clk 0:00:45]}  Ka2 {[%clk 0:00:08]} 56. Bf6 {[%clk 0:00:45]}  Kb1 {[%clk 0:00:09]} 57. Qg2 {[%clk 0:00:43]}  Kc1 {[%clk 0:00:08]} 58. b5 {[%clk 0:00:40]}  Kd1 {[%clk 0:00:08]} 59. b6 {[%clk 0:00:40]}  Ke1 {[%clk 0:00:09]} 60. b7 {[%clk 0:00:40]}  Kd1 {[%clk 0:00:08]} 61. b8=Q {[%clk 0:00:40]}  Ke1 {[%clk 0:00:08]} 62. Qb1# {[%clk 0:00:21]} 1-0


[Site "https://www.chess.com"]

[Event "Titled Tuesday Blitz August 17 2021"]
[White "davigator"]
[Black "Shkapenko, Pavel"]
[BlackFideId "4151933"]
[WhiteElo "2339"]
[BlackElo "2386"]
[Result "0-1"]
[Round "01"]
[TimeControl "180+1"]
[Date "2021.08.18"]
[WhiteClock "0:00:56"]
[BlackClock "0:00:07"]

1. e4 {[%clk 0:03:00]}  e5 {[%clk 0:02:59]} 2. Nf3 {[%clk 0:02:59]}  Nc6 {[%clk 0:02:59]} 3. Bb5 {[%clk 0:02:59]}  Bc5 {[%clk 0:02:58]} 4. c3 {[%clk 0:02:58]}  f5 {[%clk 0:02:58]} 5. d3 {[%clk 0:02:47]}  d6 {[%clk 0:02:57]} 6. O-O {[%clk 0:02:46]}  fxe4 {[%clk 0:02:55]} 7. dxe4 {[%clk 0:02:45]}  Nf6 {[%clk 0:02:56]} 8. Bg5 {[%clk 0:02:43]}  O-O {[%clk 0:02:54]} 9. Nbd2 {[%clk 0:02:42]}  Bd7 {[%clk 0:02:49]} 10. a4 {[%clk 0:02:42]}  a6 {[%clk 0:02:46]} 11. Bc4+ {[%clk 0:02:42]}  Kh8 {[%clk 0:02:47]} 12. a5 {[%clk 0:02:42]}  Qe8 {[%clk 0:02:44]} 13. Qb3 {[%clk 0:02:41]}  Rb8 {[%clk 0:02:38]} 14. h3 {[%clk 0:02:37]}  Qg6 {[%clk 0:02:36]} 15. Kh2 {[%clk 0:02:34]}  Nh5 {[%clk 0:02:23]} 16. Rae1 {[%clk 0:02:09]}  Nf4 {[%clk 0:02:18]} 17. Bxf4 {[%clk 0:02:05]}  Rxf4 {[%clk 0:02:16]} 18. Qa2 {[%clk 0:02:04]}  Rbf8 {[%clk 0:02:11]} 19. b4 {[%clk 0:02:04]}  Ba7 {[%clk 0:02:11]} 20. Bd5 {[%clk 0:01:59]}  Rxf3 {[%clk 0:01:51]} 21. Nxf3 {[%clk 0:01:58]}  Rxf3 {[%clk 0:01:51]} 22. gxf3 {[%clk 0:01:58]}  Qh5 {[%clk 0:01:52]} 23. Rh1 {[%clk 0:01:51]}  Bxh3 {[%clk 0:00:47]} 24. Kg3 {[%clk 0:01:33]}  Qg5+ {[%clk 0:00:30]} 25. Kxh3 {[%clk 0:01:32]}  Ne7 {[%clk 0:00:29]} 26. Reg1 {[%clk 0:01:23]}  Qf6 {[%clk 0:00:28]} 27. Rg3 {[%clk 0:01:19]}  Ng6 {[%clk 0:00:27]} 28. Kg2 {[%clk 0:01:19]}  Nf4+ {[%clk 0:00:27]} 29. Kf1 {[%clk 0:01:19]}  c6 {[%clk 0:00:27]} 30. Bc4 {[%clk 0:01:15]}  h6 {[%clk 0:00:26]} 31. Qd2 {[%clk 0:01:13]}  h5 {[%clk 0:00:19]} 32. Be2 {[%clk 0:01:11]}  g5 {[%clk 0:00:16]} 33. c4 {[%clk 0:01:07]}  Kh7 {[%clk 0:00:16]} 34. b5 {[%clk 0:01:06]}  Bd4 {[%clk 0:00:14]} 35. bxc6 {[%clk 0:01:06]}  bxc6 {[%clk 0:00:14]} 36. Qb4 {[%clk 0:01:02]}  h4 {[%clk 0:00:12]} 37. Qb7+ {[%clk 0:01:02]}  Kg6 {[%clk 0:00:13]} 38. Rg4 {[%clk 0:01:02]}  d5 {[%clk 0:00:11]} 39. cxd5 {[%clk 0:01:01]}  cxd5 {[%clk 0:00:11]} 40. exd5 {[%clk 0:01:01]}  e4 {[%clk 0:00:11]} 41. Qb1 {[%clk 0:01:00]}  Kf7 {[%clk 0:00:08]} 42. Qxe4 {[%clk 0:00:59]}  Be5 {[%clk 0:00:08]} 43. d6 {[%clk 0:00:57]}  Bxd6 {[%clk 0:00:08]} 44. Bc4+ {[%clk 0:00:57]}  Kf8 {[%clk 0:00:08]} 45. Qa8+ {[%clk 0:00:57]}  Kg7 {[%clk 0:00:07]} 46. Rhxh4 {[%clk 0:00:56]}  Qa1# {[%clk 0:00:07]} 0-1


[Site "https://www.chess.com"]

[Event "Titled Tuesday Blitz August 17 2021"]
[White "volunteers1998"]
[Black "Florescu, Codrut-Constantin"]
[BlackFideId "1202200"]
[WhiteElo "2226"]
[BlackElo "2243"]
[Result "1/2-1/2"]
[Round "01"]
[TimeControl "180+1"]
[Date "2021.08.18"]
[WhiteClock "0:00:12"]
[BlackClock "0:00:13"]

1. e4 {[%clk 0:03:00]}  c5 {[%clk 0:02:04]} 2. Nf3 {[%clk 0:02:59]}  e6 {[%clk 0:02:02]} 3. d4 {[%clk 0:02:59]}  cxd4 {[%clk 0:02:03]} 4. Nxd4 {[%clk 0:02:57]}  Nf6 {[%clk 0:02:03]} 5. Nc3 {[%clk 0:02:56]}  d6 {[%clk 0:02:03]} 6. Be3 {[%clk 0:02:50]}  a6 {[%clk 0:02:03]} 7. Be2 {[%clk 0:02:44]}  Be7 {[%clk 0:02:02]} 8. O-O {[%clk 0:02:42]}  Qc7 {[%clk 0:02:01]} 9. f4 {[%clk 0:02:32]}  Nbd7 {[%clk 0:01:40]} 10. Qe1 {[%clk 0:02:25]}  h5 {[%clk 0:01:39]} 11. Qg3 {[%clk 0:02:22]}  g6 {[%clk 0:01:36]} 12. Rad1 {[%clk 0:02:15]}  b5 {[%clk 0:01:35]} 13. Bf3 {[%clk 0:02:08]}  Bb7 {[%clk 0:01:35]} 14. e5 {[%clk 0:02:03]}  dxe5 {[%clk 0:01:29]} 15. fxe5 {[%clk 0:01:59]}  Ng4 {[%clk 0:01:27]} 16. Bxb7 {[%clk 0:01:55]}  Qxb7 {[%clk 0:01:26]} 17. Bf4 {[%clk 0:01:47]}  b4 {[%clk 0:01:15]} 18. Na4 {[%clk 0:01:42]}  Nc5 {[%clk 0:01:03]} 19. Nxc5 {[%clk 0:01:38]}  Bxc5 {[%clk 0:01:04]} 20. Kh1 {[%clk 0:01:36]}  Rd8 {[%clk 0:01:00]} 21. c3 {[%clk 0:01:33]}  bxc3 {[%clk 0:00:59]} 22. bxc3 {[%clk 0:01:33]}  Bxd4 {[%clk 0:00:52]} 23. cxd4 {[%clk 0:01:31]}  Nh6 {[%clk 0:00:49]} 24. Rb1 {[%clk 0:01:25]}  Qd5 {[%clk 0:00:44]} 25. Qb3 {[%clk 0:01:18]}  Qxb3 {[%clk 0:00:39]} 26. Rxb3 {[%clk 0:01:18]}  Nf5 {[%clk 0:00:39]} 27. Bg5 {[%clk 0:01:14]}  Rc8 {[%clk 0:00:39]} 28. Rd1 {[%clk 0:01:12]}  O-O {[%clk 0:00:38]} 29. h3 {[%clk 0:01:10]}  h4 {[%clk 0:00:37]} 30. d5 {[%clk 0:01:07]}  exd5 {[%clk 0:00:36]} 31. Rxd5 {[%clk 0:01:05]}  Rfe8 {[%clk 0:00:35]} 32. Rb6 {[%clk 0:01:02]}  Re6 {[%clk 0:00:23]} 33. Rxe6 {[%clk 0:00:59]}  fxe6 {[%clk 0:00:23]} 34. Ra5 {[%clk 0:00:56]}  Rc6 {[%clk 0:00:23]} 35. Kg1 {[%clk 0:00:51]}  Kf7 {[%clk 0:00:23]} 36. Kf2 {[%clk 0:00:49]}  Ke8 {[%clk 0:00:23]} 37. Ra4 {[%clk 0:00:47]}  Kd7 {[%clk 0:00:23]} 38. Bxh4 {[%clk 0:00:38]}  Rc2+ {[%clk 0:00:23]} 39. Kf3 {[%clk 0:00:35]}  Nxh4+ {[%clk 0:00:23]} 40. Rxh4 {[%clk 0:00:33]}  Rxa2 {[%clk 0:00:23]} 41. Rh6 {[%clk 0:00:28]}  Ra5 {[%clk 0:00:23]} 42. Rxg6 {[%clk 0:00:26]}  Rxe5 {[%clk 0:00:23]} 43. Rg7+ {[%clk 0:00:23]}  Kd6 {[%clk 0:00:23]} 44. g4 {[%clk 0:00:20]}  a5 {[%clk 0:00:23]} 45. h4 {[%clk 0:00:18]}  Re1 {[%clk 0:00:23]} 46. h5 {[%clk 0:00:16]}  Rh1 {[%clk 0:00:21]} 47. Ra7 {[%clk 0:00:13]}  Rf1+ {[%clk 0:00:16]} 48. Ke4 {[%clk 0:00:13]}  Rg1 {[%clk 0:00:15]} 49. Kf4 {[%clk 0:00:13]}  Rf1+ {[%clk 0:00:15]} 50. Kg5 {[%clk 0:00:13]}  e5 {[%clk 0:00:14]} 51. h6 {[%clk 0:00:12]}  e4 {[%clk 0:00:13]} 52. h7 {[%clk 0:00:13]}  Rh1 {[%clk 0:00:14]} 53. Kg6 {[%clk 0:00:13]}  e3 {[%clk 0:00:14]} 54. Rxa5 {[%clk 0:00:12]}  e2 {[%clk 0:00:13]} 55. Ra6+ {[%clk 0:00:11]}  Kd5 {[%clk 0:00:13]} 56. Ra5+ {[%clk 0:00:12]}  Kd4 {[%clk 0:00:14]} 57. Ra4+ {[%clk 0:00:11]}  Kd3 {[%clk 0:00:14]} 58. Ra3+ {[%clk 0:00:11]}  Kd4 {[%clk 0:00:14]} 59. Ra4+ {[%clk 0:00:11]}  Kd5 {[%clk 0:00:15]} 60. Ra5+ {[%clk 0:00:11]}  Kd6 {[%clk 0:00:15]} 61. Ra6+ {[%clk 0:00:11]}  Kd7 {[%clk 0:00:15]} 62. Ra7+ {[%clk 0:00:12]}  Ke8 {[%clk 0:00:15]} 63. Ra8+ {[%clk 0:00:12]}  Ke7 {[%clk 0:00:15]} 64. Ra7+ {[%clk 0:00:12]}  Ke6 {[%clk 0:00:15]} 65. Ra6+ {[%clk 0:00:13]}  Ke5 {[%clk 0:00:14]} 66. Ra5+ {[%clk 0:00:14]}  Kf4 {[%clk 0:00:14]} 67. Ra4+ {[%clk 0:00:14]}  Kg3 {[%clk 0:00:15]} 68. Ra3+ {[%clk 0:00:14]}  Kxg4 {[%clk 0:00:14]} 69. Re3 {[%clk 0:00:14]}  e1=Q {[%clk 0:00:13]} 70. Rxe1 {[%clk 0:00:14]}  Rxe1 {[%clk 0:00:14]} 71. h8=Q {[%clk 0:00:14]}  Re4 {[%clk 0:00:14]} 72. Qh5+ {[%clk 0:00:13]}  Kg3 {[%clk 0:00:14]} 73. Qf5 {[%clk 0:00:14]}  Rg4+ {[%clk 0:00:13]} 74. Kf6 {[%clk 0:00:13]}  Rf4 {[%clk 0:00:13]} 75. Qxf4+ {[%clk 0:00:12]}  Kxf4 {[%clk 0:00:13]} 1/2-1/2


[Site "https://www.chess.com"]

[Event "Titled Tuesday Blitz August 17 2021"]
[White "ARTHURMOTIVATOR"]
[Black "Chirila, Ioan-Cristian"]
[BlackFideId "1211668"]
[WhiteElo "2354"]
[BlackElo "2445"]
[Result "0-1"]
[Round "02"]
[TimeControl "180+1"]
[Date "2021.08.17"]
[WhiteClock "0:00:27"]
[BlackClock "0:00:39"]

1. e4 {[%clk 0:03:00]}  c5 {[%clk 0:02:59]} 2. b3 {[%clk 0:02:57]}  Nf6 {[%clk 0:02:56]} 3. e5 {[%clk 0:02:56]}  Nd5 {[%clk 0:02:56]} 4. Bb2 {[%clk 0:02:54]}  Nc6 {[%clk 0:02:56]} 5. Nf3 {[%clk 0:02:52]}  e6 {[%clk 0:02:55]} 6. Nc3 {[%clk 0:02:50]}  Nxc3 {[%clk 0:02:46]} 7. dxc3 {[%clk 0:02:49]}  d6 {[%clk 0:02:44]} 8. exd6 {[%clk 0:02:44]}  Bxd6 {[%clk 0:02:43]} 9. Bd3 {[%clk 0:02:43]}  O-O {[%clk 0:02:40]} 10. Qe2 {[%clk 0:02:36]}  Qc7 {[%clk 0:02:38]} 11. O-O-O {[%clk 0:02:33]}  Ne5 {[%clk 0:02:17]} 12. c4 {[%clk 0:02:05]}  Nxd3+ {[%clk 0:02:12]} 13. Qxd3 {[%clk 0:02:00]}  Be7 {[%clk 0:02:09]} 14. h4 {[%clk 0:01:53]}  f6 {[%clk 0:02:06]} 15. h5 {[%clk 0:01:40]}  e5 {[%clk 0:02:06]} 16. h6 {[%clk 0:01:38]}  g6 {[%clk 0:02:06]} 17. Rhe1 {[%clk 0:01:35]}  Bf5 {[%clk 0:01:59]} 18. Qd5+ {[%clk 0:01:34]}  Rf7 {[%clk 0:01:56]} 19. Bxe5 {[%clk 0:01:30]}  fxe5 {[%clk 0:01:48]} 20. Nxe5 {[%clk 0:01:28]}  Bg5+ {[%clk 0:01:39]} 21. Kb1 {[%clk 0:01:28]}  Bxh6 {[%clk 0:01:39]} 22. g4 {[%clk 0:01:20]}  Bxg4 {[%clk 0:01:10]} 23. Nxg4 {[%clk 0:01:11]}  Bg7 {[%clk 0:01:11]} 24. Re6 {[%clk 0:00:35]}  Raf8 {[%clk 0:01:01]} 25. Rde1 {[%clk 0:00:31]}  Qf4 {[%clk 0:00:55]} 26. Ne5 {[%clk 0:00:28]}  Bxe5 {[%clk 0:00:48]} 27. R6xe5 {[%clk 0:00:28]}  Qxf2 {[%clk 0:00:45]} 28. Re7 {[%clk 0:00:28]}  Kg7 {[%clk 0:00:40]} 29. Qxb7 {[%clk 0:00:27]}  Qxe1+ {[%clk 0:00:39]} 0-1


[Site "https://www.chess.com"]

[Event "Titled Tuesday Blitz August 17 2021"]
[White "Amburgy, Ryan"]
[Black "Klyashtorny, Vladislav"]
[WhiteFideId "30924820"]
[BlackFideId "4170938"]
[WhiteElo "2066"]
[BlackElo "2325"]
[Result "1-0"]
[Round "02"]
[TimeControl "180+1"]
[Date "2021.08.18"]
[WhiteClock "0:00:17"]
[BlackClock "0:00:17"]

1. Nf3 {[%clk 0:03:00]}  d5 {[%clk 0:02:59]} 2. e3 {[%clk 0:03:00]}  Nf6 {[%clk 0:03:00]} 3. c4 {[%clk 0:03:01]}  c6 {[%clk 0:02:59]} 4. Nc3 {[%clk 0:03:01]}  a6 {[%clk 0:03:00]} 5. cxd5 {[%clk 0:02:59]}  cxd5 {[%clk 0:03:00]} 6. b3 {[%clk 0:02:59]}  g6 {[%clk 0:03:00]} 7. Bb2 {[%clk 0:02:59]}  Bg7 {[%clk 0:03:01]} 8. Be2 {[%clk 0:02:59]}  O-O {[%clk 0:03:01]} 9. O-O {[%clk 0:03:00]}  Nc6 {[%clk 0:03:01]} 10. d4 {[%clk 0:03:00]}  Bg4 {[%clk 0:02:58]} 11. Rc1 {[%clk 0:02:57]}  Rc8 {[%clk 0:02:58]} 12. h3 {[%clk 0:02:57]}  Bxf3 {[%clk 0:02:56]} 13. Bxf3 {[%clk 0:02:58]}  e6 {[%clk 0:02:55]} 14. Na4 {[%clk 0:02:57]}  Nd7 {[%clk 0:02:45]} 15. Nc5 {[%clk 0:02:41]}  Nxc5 {[%clk 0:02:45]} 16. Rxc5 {[%clk 0:02:42]}  Qd7 {[%clk 0:02:33]} 17. a3 {[%clk 0:02:37]}  Ne7 {[%clk 0:02:31]} 18. Qd2 {[%clk 0:02:27]}  b6 {[%clk 0:02:27]} 19. Rcc1 {[%clk 0:02:19]}  Qb5 {[%clk 0:02:15]} 20. b4 {[%clk 0:02:15]}  Rxc1 {[%clk 0:02:08]} 21. Rxc1 {[%clk 0:02:16]}  Rc8 {[%clk 0:02:08]} 22. Rxc8+ {[%clk 0:02:11]}  Nxc8 {[%clk 0:02:08]} 23. Be2 {[%clk 0:02:11]}  Qa4 {[%clk 0:02:03]} 24. Qc3 {[%clk 0:02:09]}  Nd6 {[%clk 0:02:01]} 25. Kh2 {[%clk 0:01:59]}  Bf8 {[%clk 0:01:54]} 26. Bd3 {[%clk 0:01:46]}  a5 {[%clk 0:01:26]} 27. bxa5 {[%clk 0:01:04]}  bxa5 {[%clk 0:01:26]} 28. e4 {[%clk 0:00:46]}  Nb5 {[%clk 0:01:14]} 29. Qc6 {[%clk 0:00:36]}  dxe4 {[%clk 0:00:37]} 30. Qxb5 {[%clk 0:00:35]}  Bd6+ {[%clk 0:00:30]} 31. g3 {[%clk 0:00:32]}  Qd1 {[%clk 0:00:26]} 32. Bxe4 {[%clk 0:00:30]}  Qd2 {[%clk 0:00:26]} 33. Kg2 {[%clk 0:00:24]}  a4 {[%clk 0:00:20]} 34. d5 {[%clk 0:00:22]}  e5 {[%clk 0:00:20]} 35. Bxe5 {[%clk 0:00:17]}  Bxe5 {[%clk 0:00:17]} 36. Qe8+ {[%clk 0:00:18]}  Kg7 {[%clk 0:00:17]} 37. Qxe5+ {[%clk 0:00:19]}  Kf8 {[%clk 0:00:18]} 38. d6 {[%clk 0:00:17]}  f5 {[%clk 0:00:17]} 39. Qf6+ {[%clk 0:00:17]}  Kg8 {[%clk 0:00:17]} 40. Bf3 {[%clk 0:00:17]}  Qd3 {[%clk 0:00:17]} 41. Qe7 {[%clk 0:00:17]} 1-0


[Site "https://www.chess.com"]

[Event "Titled Tuesday Blitz August 17 2021"]
[White "Awatramani, Janak"]
[Black "FGHSMN"]
[WhiteFideId "2608359"]
[WhiteElo "2873"]
[BlackElo "2587"]
[Result "1-0"]
[Round "02"]
[TimeControl "180+1"]
[Date "2021.08.17"]
[WhiteClock "0:01:32"]
[BlackClock "0:00:37"]

1. e4 {[%clk 0:03:00]}  c5 {[%clk 0:02:55]} 2. Nc3 {[%clk 0:03:00]}  e6 {[%clk 0:02:50]} 3. f4 {[%clk 0:02:59]}  Nc6 {[%clk 0:02:48]} 4. Bb5 {[%clk 0:02:58]}  Nd4 {[%clk 0:02:46]} 5. Bc4 {[%clk 0:02:45]}  Nf6 {[%clk 0:02:43]} 6. e5 {[%clk 0:02:44]}  d5 {[%clk 0:02:38]} 7. Be2 {[%clk 0:02:34]}  Nd7 {[%clk 0:02:29]} 8. Nf3 {[%clk 0:02:34]}  Nxe2 {[%clk 0:02:28]} 9. Nxe2 {[%clk 0:02:33]}  Be7 {[%clk 0:02:29]} 10. c3 {[%clk 0:02:32]}  O-O {[%clk 0:02:26]} 11. d4 {[%clk 0:02:33]}  cxd4 {[%clk 0:02:24]} 12. Nexd4 {[%clk 0:02:33]}  Nc5 {[%clk 0:02:24]} 13. O-O {[%clk 0:02:33]}  Ne4 {[%clk 0:02:21]} 14. Be3 {[%clk 0:02:32]}  Bd7 {[%clk 0:02:20]} 15. Qe2 {[%clk 0:02:28]}  Rc8 {[%clk 0:02:18]} 16. Nd2 {[%clk 0:02:28]}  Nxd2 {[%clk 0:02:05]} 17. Qxd2 {[%clk 0:02:29]}  Bc5 {[%clk 0:02:02]} 18. Rf3 {[%clk 0:02:26]}  f5 {[%clk 0:01:59]} 19. exf6 {[%clk 0:02:21]}  Qxf6 {[%clk 0:01:56]} 20. Ne2 {[%clk 0:02:19]}  b6 {[%clk 0:01:53]} 21. Bd4 {[%clk 0:02:11]}  Bb5 {[%clk 0:01:50]} 22. b4 {[%clk 0:02:05]}  Bxd4+ {[%clk 0:01:41]} 23. Nxd4 {[%clk 0:02:06]}  Bc4 {[%clk 0:01:41]} 24. Re1 {[%clk 0:02:06]}  Rce8 {[%clk 0:01:38]} 25. g3 {[%clk 0:02:03]}  h5 {[%clk 0:01:34]} 26. Rfe3 {[%clk 0:02:03]}  h4 {[%clk 0:01:29]} 27. Rxe6 {[%clk 0:02:00]}  Rxe6 {[%clk 0:01:29]} 28. Rxe6 {[%clk 0:02:01]}  Qf7 {[%clk 0:01:29]} 29. f5 {[%clk 0:01:59]}  hxg3 {[%clk 0:01:29]} 30. hxg3 {[%clk 0:02:00]}  Qh5 {[%clk 0:01:29]} 31. a3 {[%clk 0:01:50]}  Rf6 {[%clk 0:01:26]} 32. Kg2 {[%clk 0:01:42]}  Qf7 {[%clk 0:01:09]} 33. g4 {[%clk 0:01:38]}  g6 {[%clk 0:01:07]} 34. Qg5 {[%clk 0:01:36]}  Rxe6 {[%clk 0:00:59]} 35. Nxe6 {[%clk 0:01:34]}  Qe8 {[%clk 0:00:37]} 36. Qf6 {[%clk 0:01:31]}  Qf7 {[%clk 0:00:35]} 37. Qd8+ {[%clk 0:01:31]}  Kh7 {[%clk 0:00:35]} 38. Ng5+ {[%clk 0:01:31]}  Kg7 {[%clk 0:00:36]} 39. Nxf7 {[%clk 0:01:32]}  Kxf7 {[%clk 0:00:37]} 40. f6 {[%clk 0:01:32]} 1-0


[Site "https://www.chess.com"]